Cogmind - Beta 13 @@@ ROGUE MODE // 2024.05.16 @ 10:31:11 Player: Some Pennies Result: Destroyed by G-47 Trooper with Particle Gun Performance ------------- Evolutions (2) 1000 Regions Visited (6) 1200 Robots Destroyed (110) 550 Value Destroyed (3655) 3655 Prototype IDs (33) 660 Alien Tech Used (0) 0 Bonus (1021) 1021 TOTAL SCORE: 8086 Bonus ------- High Alert Combat Kills 521 Entered Garrisons 200 Aligned with FarCom 300 Cogmind --------- Core Integrity 0/550 Matter 20/300 Energy 150/150 System Corruption 17% Temperature Cool (9) Movement Walking (330) Ox3 Location -8/Garrison Parts ------- > --- POWER (1) -------- Micro Nuclear Core > --- PROPULSION (4) --- Carbon-fiber Leg > --- UTILITY (4) ------ Advanced Heat Sink High-capacity Storage Unit Hacking Suite > --- WEAPON (2) ------- Katana > --- INVENTORY (20) --- ECM Suite Cloak of Protection Hacking Suite Hacking Suite Relay Coupler [NC] (29) Relay Coupler [NC] (31) Relay Coupler [Swarmer] (43) Relay Coupler [Swarmer] (38) Relay Coupler [Cutter] (31) Relay Coupler [Grunt] (28) Relay Coupler [Grunt] (31) Relay Coupler [Sentry] (24) Relay Coupler [Sentry] (18) Relay Coupler [Sentry] (21) Gauss Cannon Gauss Cannon Rocket Launcher Datajack Remote Datajack Plasma Cutter Peak State ------------ > --- POWER ------------ Micro Nuclear Core > --- PROPULSION ------- Gravmag System Gravmag System Gravmag System Improved VTOL Module > --- UTILITY ---------- High-capacity Storage Unit Machine Analyzer Advanced Visual Processing Unit Advanced Targeting Computer > --- WEAPON ----------- Gauss Cannon Gauss Cannon > --- INVENTORY -------- Advanced Heat Sink ECM Suite Cloak of Protection Hacking Suite Hacking Suite Hacking Suite Relay Coupler [NC] Relay Coupler [NC] Relay Coupler [Swarmer] Relay Coupler [Swarmer] Relay Coupler [Grunt] Relay Coupler [Sentry] Gauss Cannon Gauss Cannon Rocket Launcher Rocket Launcher Datajack Remote Datajack Plasma Cutter Katana [Rating: 44] Favorites ----------- Power Light Ion Engine Engine Light Ion Engine Power Core Micro Nuclear Core Propulsion Light Treads Treads Light Treads Leg Aluminum Leg Hover Unit Gravmag System Flight Unit Improved VTOL Module Utility Light Armor Plating Device Seismic Detector Storage High-capacity Storage Unit Processor Machine Analyzer Hackware Hacking Suite Protection Light Armor Plating Weapon Assault Rifle Energy Gun Heavy EM Shotgun Energy Cannon Heavy Particle Cannon Ballistic Gun Assault Rifle Ballistic Cannon Gauss Cannon Launcher Rocket Launcher Special Weapon Plasma Cutter Slashing Weapon Katana Special Melee Weapon Datajack Build | -11 -10 -10 -10 -9 -8 -8 ------- Run | Yrd Mat Min Exi Min Mat Gar Slots Evolved 4 | . . . . . 4 . Power . | . . . . . . . Propulsion 2 | . . . . . 2 . Utility 2 | . . . . . 2 . Weapon . | . . . . . . . Parts Attached 152 | 8 13 6 1 6 74 44 Power 11 | 2 1 . . 1 5 2 Engine 9 | 2 1 . . 1 5 . Core 2 | . . . . . . 2 Reactor . | . . . . . . . Propulsion 38 | 2 4 . . . 16 16 Treads 25 | 2 4 . . . 15 4 Leg 7 | . . . . . . 7 Wheel . | . . . . . . . Hover 4 | . . . . . . 4 Flight 2 | . . . . . 1 1 Utility 43 | 2 4 3 1 1 23 9 Device 15 | 1 3 2 . . 6 3 Storage 4 | 1 1 . 1 . 1 . Processor 5 | . . . . . 3 2 Hackware 1 | . . . . . . 1 Protection 18 | . . 1 . 1 13 3 Artifact . | . . . . . . . Weapon 60 | 2 4 3 . 4 30 17 Energy Gun 3 | . . . . . 3 . Energy Cannon 15 | . . . . . 15 . Ballistic Gun 16 | 2 3 2 . 2 7 . Ballistic Cannon 10 | . . . . . 1 9 Launcher 7 | . . . . 2 2 3 Special Weapon 4 | . . 1 . . . 3 Impact Weapon . | . . . . . . . Slashing Weapon 2 | . . . . . . 2 Piercing Weapon . | . . . . . . . Special Melee Weapon 3 | . 1 . . . 2 . Unidentified Prototypes 8 | . . . . . 8 . Parts Lost 19 | . 1 . . 1 2 15 Power 2 | . . . . 1 . 1 Propulsion 9 | . . . . . . 9 Utility 5 | . 1 . . . 2 2 Weapon 3 | . . . . . . 3 Highest Loss Streak 5 | . 1 . . 1 1 5 To Critical Strikes . | . . . . . . . Average Slot Usage (%) 98 | . 99 100 100 96 99 92 Engine 8 | . 14 14 14 10 9 . Core 1 | . . . . . . 7 Treads 26 | . 28 28 28 28 35 9 Leg 2 | . . . . . . 10 Hover 1 | . . . . . . 6 Flight 1 | . . . . . . 4 Device 8 | . 13 11 14 3 6 7 Storage 10 | . 14 14 14 14 9 9 Processor 4 | . . . . . 8 6 Hackware 1 | . . . . . . 6 Protection 6 | . . 2 . 10 11 5 Energy Cannon 6 | . . . . . 15 2 Ballistic Gun 11 | . 27 26 28 27 2 . Ballistic Cannon 2 | . . . . . . 10 Naked Turns . | . . . . . . . Heaviest Build 69 | 14 20 20 28 30 69 65 Greatest Support 82 | 40 40 40 40 40 80 82 Greatest Overweight (x) 21 | . . . . . 21 12 Average Overweight (x) . | . . . . . . 1 Largest Inventory Capacity 20 | 8 10 10 15 15 20 20 Average Capacity 14 | 7 9 10 10 15 16 20 Most Carried 20 | 5 10 10 10 13 20 20 Average Carried 14 | 2 8 9 9 10 16 19 Final Capacity 20 | 8 10 10 15 15 20 20 Final Carried 20 | 4 10 9 10 12 20 20 Class Distribution -------------------- 56% | Scavenger-Mutant 41% | Mutant Dominant Class ---------------- Mutant | -10/Materials Mutant | -10/Mines Mutant | -10/Exiles Mutant | -9/Mines Scavenger-Mutant | -8/Materials Scavenger-Mutant | -8/Garrison Resources | -11 -10 -10 -10 -9 -8 -8 ----------- Run | Yrd Mat Min Exi Min Mat Gar Matter Collected 2943 | 300 422 107 . 311 928 875 Remotely 56 | . . . . . 56 . Salvage Created 3747 | 103 649 93 . 82 2122 698 Parts 241 | 6 52 13 . . 125 45 Haulers Intercepted 7 | . 2 . . . 5 . Recyclers Shooed 1 | . . 1 . . . . Parts Field Recycled . | . . . . . . . Retrieved Matter . | . . . . . . . Parts Self-Destructed . | . . . . . . . Prevented . | . . . . . . . Kills | -11 -10 -10 -10 -9 -8 -8 ------- Run | Yrd Mat Min Exi Min Mat Gar Combat Hostiles Destroyed 94 | . 15 6 . 15 32 26 Melee 1 | . . . . . . 1 Guns 32 | . 15 6 . 7 4 . Cannons 41 | . . . . . 22 19 AOE 18 | . . . . 8 4 6 Classes Destroyed 14 | 2 6 . . 1 4 1 Worker 4 | . 2 . . . 2 . Builder 1 | . . . . . 1 . Tunneler 4 | 2 1 1 . . . . Hauler 7 | . 2 . . . 5 . Recycler 5 | 1 1 . . . 3 . Operator 3 | . 1 . . . 2 . Watcher 7 | . 2 . . . 5 . Swarmer 21 | . 8 6 . . 4 3 Grunt 34 | . 7 . . . 14 13 Duelist 3 | . . . . . 3 . Sentry 13 | . . . . . 10 3 Hunter 1 | . . . . . 1 . Programmer 7 | . . . . . . 7 Assembled 15 | . . . . 15 . . Best Kill Streak 8 | 2 5 3 . 8 6 6 Combat Bots Only 8 | . 3 3 . 8 4 6 Max Kills in Single Turn 3 | 1 2 2 . 3 2 3 Gunslinging 1 | . 1 1 . . . . Exploded 3 | . . . . 3 2 3 Melee 1 | . . . . . . 1 Uniques/NPCs Destroyed . | . . . . . . . Combat | -11 -10 -10 -10 -9 -8 -8 -------- Run | Yrd Mat Min Exi Min Mat Gar Hostile Shots Fired 498 | . 81 35 . 26 144 212 Missed 136 | . 21 15 . 10 44 46 Damage Taken 5299 | . 569 166 . 209 1596 2759 Core 745 | . 123 38 . 25 214 345 Absorbed by Shields . | . . . . . . . Core Remaining (%) 62 | 100 . . . 25 . . Volleys Fired 307 | 5 68 28 . 25 112 69 Largest 2 | 2 2 2 . 2 2 2 Hottest 150 | 40 40 100 . 53 150 150 Shots Fired 580 | 10 136 43 . 41 221 129 Gun 231 | 10 136 30 . 31 24 . Cannon 316 | . . . . . 195 121 Launcher 20 | . . . . 10 2 8 Special 13 | . . 13 . . . . Kinetic 323 | 10 136 30 . 31 25 91 Thermal 219 | . . 13 . . 176 30 Explosive 20 | . . . . 10 2 8 Electromagnetic 18 | . . . . . 18 . Robot Hit Streak 28 | 2 8 4 . 5 27 28 Robot Miss Streak 5 | 2 3 5 . 5 3 3 Penetration Max . | . . . . . . . Secondary Targets 4 | . 2 1 . . 1 . Max Gunslinging Chain 1 | . 1 1 . . 1 . Shots Hit Robots 367 | 4 80 15 . 17 159 92 Core Hits 178 | 3 38 7 . 22 66 42 Critical Kills 2 | 1 . . . . 1 . Critical Parts Destroyed . | . . . . . . . Critical Strikes 8 | 1 . . . . 1 6 Meltdown 1 | . . . . . 1 . Destroy 1 | 1 . . . . . . Blast 6 | . . . . . . 6 Melee Attacks 11 | . . . . . . 11 Impact . | . . . . . . . Slashing 11 | . . . . . . 11 Piercing . | . . . . . . . Sneak Attacks 1 | . . . . . . 1 Combat Hostiles 1 | . . . . . . 1 Follow-up Attacks . | . . . . . . . Damage Inflicted 9697 | 50 888 196 . 928 4257 3378 Guns 1706 | 50 888 196 . 198 374 . Cannons 6098 | . . . . . 3625 2473 Explosions 1695 | . . . . 730 258 707 Melee 198 | . . . . . . 198 Ramming . | . . . . . . . Kinetic 3610 | 50 888 196 . 198 405 1873 Thermal 3943 | . . . . . 3343 600 Explosive 1606 | . . . . 730 169 707 Electromagnetic 340 | . . . . . 340 . Impact . | . . . . . . . Slashing 198 | . . . . . . 198 Piercing . | . . . . . . . Highest Corruption 17 | . . . . . 4 17 Average Corruption 12 | . . . . . 4 14 Corruption Purged . | . . . . . . . Corruption Blocked . | . . . . . . . Effects 109 | . . . . . 14 95 Message Errors 18 | . . . . . 1 17 Matter Fused 29 | . . . . . 10 19 Heat Flow Errors 18 | . . . . . 1 17 Energy Discharges 10 | . . . . . . 10 Parts Rejected 1 | . . . . . . 1 Parts Fused 2 | . . . . . 1 1 Data Loss (minor) 12 | . . . . . 1 11 Data Loss (major) 8 | . . . . . . 8 Misfires 4 | . . . . . . 4 Alerts 2 | . . . . . . 2 Misdirections 2 | . . . . . . 2 Weapon Failures 3 | . . . . . . 3 Overload Shots . | . . . . . . . Overflow Damage 229 | . . . . 30 104 95 Projectiles 140 | . . . . . 54 86 Explosions 80 | . . . . 30 50 . Melee 9 | . . . . . . 9 Knockbacks 25 | . . . . . . 25 Impact . | . . . . . . . Kinetic 20 | . . . . . . 20 Secondary 5 | . . . . . . 5 Self-Inflicted Damage 25 | . . . . . 25 . Shots 1 | . . . . . 1 . Rammed . | . . . . . . . Targets Rammed . | . . . . . . . Kicked . | . . . . . . . Crushed . | . . . . . . . Highest Temperature 373 | . 12 120 . 19 349 373 Average Temperature 93 | . 7 46 . 11 79 138 Received Heat Transfer 1808 | . 186 12 . 80 855 675 Effects 7 | . . . . . . 7 Energy Bleed 4 | . . . . . . 4 Interference 1 | . . . . . . 1 Short Circuit 1 | . . . . . . 1 Damage (minor) 1 | . . . . . . 1 Siege Activations . | . . . . . . . Robots Corrupted . | . . . . . . . Combat Hostiles . | . . . . . . . Parts Fried 1 | . . . . . 1 . Impact Corruptions . | . . . . . . . Robots Melted 2 | . . . . . 2 . Combat Hostiles 2 | . . . . . 2 . Parts Melted 11 | . . . . . 11 . Heat Transferred 5520 | . . . . . 4786 734 Parts Sabotaged . | . . . . . . . Parts Stolen . | . . . . . . . Parts Stripped . | . . . . . . . Power Chain Reactions 2 | . . . . . 2 . Alert | -11 -10 -10 -10 -9 -8 -8 ------- Run | Yrd Mat Min Exi Min Mat Gar Peak Influence 1317 | 15 258 94 . 51 584 1317 Initial 367 | . 9 . . . 19 367 Average 309 | 5 96 49 . 33 203 859 Maximum Alert Level 4 | . 1 . . . 2 4 Low Security (%) 59 | 100 91 100 . 100 61 . Level 1 11 | . 8 . . . 20 5 Level 2 11 | . . . . . 18 18 Level 3 13 | . . . . . . 57 Level 4 4 | . . . . . . 18 Level 5 . | . . . . . . . High Security . | . . . . . . . Max Security . | . . . . . . . Squads Dispatched 10 | . 4 . . . 6 . Investigation 3 | . 3 . . . . . Extermination . | . . . . . . . Reinforcement 4 | . 1 . . . 3 . Assault . | . . . . . . . Garrison 3 | . . . . . 3 . Intercept . | . . . . . . . Searches Triggered . | . . . . . . . Construction Impeded 1 | . . . . . 1 . Haulers Reinforced . | . . . . . . . Active Scanning Responses . | . . . . . . . Cargo Convoy Interrupts . | . . . . . . . Stealth | -11 -10 -10 -10 -9 -8 -8 --------- Run | Yrd Mat Min Exi Min Mat Gar Distress Signals 4 | . 2 . . . 2 . Communications Jammed . | . . . . . . . Distress Signals . | . . . . . . . Times Spotted 125 | . 24 8 . 18 42 33 Peak Tracking Total 9 | . 4 3 . 9 5 6 Tactical Retreats 8 | . 2 . . 1 1 4 Traps | -11 -10 -10 -10 -9 -8 -8 ------- Run | Yrd Mat Min Exi Min Mat Gar Traps Triggered 13 | . 3 . . . . 10 Indirectly . | . . . . . . . Trap Hack Attempts 98 | . 11 . . . 87 . Triggered . | . . . . . . . Disarmed 5 | . 1 . . . 4 . Reprogrammed 8 | . . . . . 8 . Reused . | . . . . . . . Traps Extracted . | . . . . . . . Installed . | . . . . . . . Triggered . | . . . . . . . Machines | -11 -10 -10 -10 -9 -8 -8 ---------- Run | Yrd Mat Min Exi Min Mat Gar Machines Disabled 7 | . . . . . 2 5 Max in Single Turn 2 | . . . . . 1 2 Garrison Relay 7 | . . . . . . 7 Machines Repaired . | . . . . . . . Machines Dismantled 3 | . . . . . . 3 Machines Sabotaged . | . . . . . . . Overloaded Fab Kills . | . . . . . . . Hacking | -11 -10 -10 -10 -9 -8 -8 --------- Run | Yrd Mat Min Exi Min Mat Gar Machines Accessed 25 | . 9 . 2 . 13 1 Terminals 14 | . 6 . . . 7 1 Fabricators . | . . . . . . . Repair Stations 3 | . 1 . . . 2 . Recycling Units 4 | . 2 . . . 2 . Scanalyzers 1 | . . . . . 1 . Garrison Access 1 | . . . . . 1 . Total Hacks 80 | . 23 . 24 . 31 2 Successful 53 | . 14 . 24 . 15 . Failed 25 | . 8 . . . 15 2 Catastrophic 4 | . 1 . . . 3 . Database Lockouts 2 | . 1 . . . 1 . Manual 28 | . 15 . 1 . 12 . Terminals 35 | . 17 . . . 16 2 Fabricators . | . . . . . . . Repair Stations 7 | . 2 . . . 5 . Recycling Units 6 | . 4 . . . 2 . Scanalyzers 6 | . . . . . 6 . Garrison Access 2 | . . . . . 2 . Terminal Hacks 37 | . 8 . 24 . 5 . Record 24 | . . . 23 . 1 . Part Schematic 1 | . 1 . . . . . Robot Analysis 5 | . 3 . . . 2 . Prototype ID Bank 1 | . 1 . . . . . Emergency Access Points 1 | . 1 . . . . . Locate Traps 2 | . 1 . . . 1 . Hauler Manifests 2 | . 1 . . . 1 . Derelict Proto ID Bank 1 | . . . 1 . . . Fabricator Hacks . | . . . . . . . Repair Station Hacks 3 | . 1 . . . 2 . Scan Component 3 | . 1 . . . 2 . Recycling Unit Hacks 2 | . 1 . . . 1 . Report Inventory 1 | . 1 . . . . . Retrieve Components 1 | . . . . . 1 . Scanalyzer 6 | . . . . . 6 . Insert Component 3 | . . . . . 3 . Analyze 3 | . . . . . 3 . Garrison Access Hacks 1 | . . . . . 1 . Unlock Access 1 | . . . . . 1 . Unauthorized Hacks 4 | . 4 . . . . . Terminals 2 | . 2 . . . . . Botnet 2 | . 2 . . . . . Fabricators . | . . . . . . . Repair Stations . | . . . . . . . Recycling Units 2 | . 2 . . . . . Monitor 1 | . 1 . . . . . Mask 1 | . 1 . . . . . Scanalyzers . | . . . . . . . Garrison Access . | . . . . . . . Data Cores Recovered . | . . . . . . . Used . | . . . . . . . Hacking Detections 20 | . 7 . . . 12 1 Full Trace Events . | . . . . . . . Feedback Events . | . . . . . . . Feedback Blocked . | . . . . . . . Robot Schematics Acquired . | . . . . . . . Robots Built . | . . . . . . . Authchips . | . . . . . . . Time . | . . . . . . . Total Robot Build Rating . | . . . . . . . Part Schematics Acquired 4 | . 1 . . . 3 . Parts Built . | . . . . . . . Authchips . | . . . . . . . Time . | . . . . . . . Total Part Build Rating . | . . . . . . . Parts Repaired . | . . . . . . . Time . | . . . . . . . Parts Recycled . | . . . . . . . Recycled Matter . | . . . . . . . Retrieved Matter . | . . . . . . . Retrieved Components 9 | . . . . . 9 . Parts Scanalyzed 3 | . . . . . 3 . Part Schematics Acquired 3 | . . . . . 3 . Parts Damaged . | . . . . . . . Bothacking | -11 -10 -10 -10 -9 -8 -8 ------------ Run | Yrd Mat Min Exi Min Mat Gar Used RIF Installer . | . . . . . . . Robots Hacked . | . . . . . . . Non-combat . | . . . . . . . Combat . | . . . . . . . Robot Hacks Applied . | . . . . . . . Relay Couplers Released 27 | . . . . . . 27 Machine Destruction 27 | . . . . . . 27 Fabnet Peak Effective % . | . . . . . . . Robots Rewired . | . . . . . . . Allies Hacked . | . . . . . . . Hacks Repelled . | . . . . . . . Allies | -11 -10 -10 -10 -9 -8 -8 -------- Run | Yrd Mat Min Exi Min Mat Gar Total Allies . | . . . . . . . Largest Group . | . . . . . . . Highest-Rated Group . | . . . . . . . Highest-Rated Ally . | . . . . . . . Total Orders . | . . . . . . . Ally Attacks . | . . . . . . . Total Damage . | . . . . . . . Kills . | . . . . . . . Allies Corrupted . | . . . . . . . Allies Melted . | . . . . . . . Intel | -11 -10 -10 -10 -9 -8 -8 ------- Run | Yrd Mat Min Exi Min Mat Gar Robot Analysis Total 5 | . 3 . . . 2 . Derelict Logs Recovered 1 | . . 1 . . . . Drone Launches . | . . . . . . . Drone Recoveries . | . . . . . . . Exploration | -11 -10 -10 -10 -9 -8 -8 ------------- Run | Yrd Mat Min Exi Min Mat Gar Turns Passed 9868 | 136 2060 869 411 369 3819 2204 Spaces Moved 4640 | 68 931 474 256 167 1939 805 Core 6 | 5 . . . . 1 . Treads 4191 | 63 931 474 256 167 1938 362 Legs 297 | . . . . . . 297 Wheels . | . . . . . . . Hover 143 | . . . . . . 143 Flight 3 | . . . . . . 3 Fastest Speed 50 | 50 160 160 160 160 160 112 Average Speed 171 | 151 160 160 160 160 160 223 Slowest Speed 1100 | 160 160 160 160 160 1100 875 Overloaded Moves . | . . . . . . . Propulsion Burnouts . | . . . . . . . Robots Hopped . | . . . . . . . Cave-ins Triggered . | . . . . . . . Exploration Rate (%) 62 | 4 98 96 61 30 91 56 Regions Visited 6 Branch Regions 3 Pre-discovered Areas 2 | . . . 1 1 . . Known Exits Taken 1 | . . . . . 1 . Unknown Exits Taken 5 | 1 1 1 1 1 . . Scrap Searched 2 | . . 1 . 1 . . Spaces Dug 67 | . . 12 . 37 18 . Terrain Destroyed 166 | . . 13 . 85 56 12 Melee . | . . . . . . . Projectile 46 | . . 13 . . 33 . AOE 120 | . . . . 85 23 12 Terrain Rammed . | . . . . . . . Walls Destroyed . | . . . . . . . Machines Disabled . | . . . . . . . Actions | -11 -10 -10 -10 -9 -8 -8 --------- Run | Yrd Mat Min Exi Min Mat Gar Total 5944 | 92 1379 515 258 226 2433 1041 Wait 488 | . 327 2 . 24 108 27 Move 4635 | 67 930 473 255 166 1939 805 Hop . | . . . . . . . Pick Up 101 | 11 16 2 1 4 47 20 Fast Attach 36 | . 3 . . . 21 12 Attach 32 | 8 1 . . 1 9 13 Detach 1 | 1 . . . . . . Swap 85 | . 9 6 1 5 44 20 Drop 106 | . 14 4 1 1 66 20 Fire 307 | 5 68 28 . 25 112 69 Melee 11 | . . . . . . 11 Ram . | . . . . . . . Kick . | . . . . . . . Crush . | . . . . . . . Escape Stasis 35 | . . . . . . 35 Rewire . | . . . . . . . Trap 98 | . 11 . . . 87 . Miscellaneous 9 | . . . . . . 9 Route ------- -11/Scrapyard -10/Materials (discovered 6 exits: [*Mat x3] / [*Min x2] / [*Sub]) -10/Mines (discovered 3 exits: [*Mat x2] / *Exi) -10/Exiles -9/Mines (discovered 2 exits: *Mat x2) -8/Materials (discovered 3 exits: [*Fac x2] / Gar) -8/Garrison (discovered 2 exits: [*Mat x2]) History --------- Turn | Location | Event 13 | -11/Scrapyard | Discovered new exit (range 14) 137 | -11/Scrapyard | Entered Materials 309 | -10/Materials | Build established: Mutant 348 | -10/Materials | Discovered new exit (range 15) 618 | -10/Materials | Discovered new exit (range 9) 912 | -10/Materials | Discovered new exit (range 5) 977 | -10/Materials | Discovered new exit (range 6) 1543 | -10/Materials | Discovered new exit (range 5) 1899 | -10/Materials | Discovered new exit (range 9) 2106 | -10/Materials | Central database locked down 2197 | -10/Materials | Entered Mines 2203 | -10/Mines | Met a Derelict bent on vengeance 2276 | -10/Mines | Core integrity fell below 50% 2643 | -10/Mines | Discovered new exit (range 8) 2823 | -10/Mines | Received a Rocket Launcher from a helpful Derelict 2954 | -10/Mines | Discovered new exit (range 10) 3058 | -10/Mines | Deemed a non-threat by the Exiles lab entrance 3059 | -10/Mines | Discovered new exit (range 5) 3066 | -10/Mines | Entered Exiles 3106 | -10/Exiles | Met 8R-AWN 3135 | -10/Exiles | Met EX-HEX 3185 | -10/Exiles | Met EX-BIN 3206 | -10/Exiles | Aligned with FarCom system 3207 | -10/Exiles | Given EX-Vault access code 3249 | -10/Exiles | Opened EX-Vault 3263 | -10/Exiles | Found Cloak of Protection 3298 | -10/Exiles | Warned to stay clear of 0b10 Research branches 3347 | -10/Exiles | Met EX-DEC 3357 | -10/Exiles | Learned location of Zion (-7) 3455 | -10/Exiles | Discovered new exit (range 14) 3477 | -10/Exiles | Left Exiles lab with Cloak of Protection 3477 | -10/Exiles | Entered Mines 3478 | -9/Mines | Learned location of Storage (-9) 3478 | -9/Mines | Assembled infested the area 3730 | -9/Mines | Destroyed 8 combat bots 3731 | -9/Mines | Discovered new exit (range 16) 3750 | -9/Mines | Discovered new exit (range 8) 3846 | -9/Mines | Entered Materials 3846 | -8/Materials | Evolved 4 slots: Propulsion x2, Utility x2 4154 | -8/Materials | Build established: Scavenger-Mutant 4857 | -8/Materials | Discovered new exit (range 12) 4896 | -8/Materials | Central database locked down 5696 | -8/Materials | Discovered new exit (range 15) 6905 | -8/Materials | Garrison activated, responded to threat 7665 | -8/Materials | Identified exit to Garrison 7665 | -8/Materials | Entered Garrison 7719 | -8/Garrison | Triggered checkpoint 7747 | -8/Garrison | Triggered checkpoint 7883 | -8/Garrison | Discovered new exit (range 10) 7907 | -8/Garrison | Garrison Relay disabled 7907 | -8/Garrison | Garrison Relay disabled 7914 | -8/Garrison | Core integrity fell below 50% 7924 | -8/Garrison | System corruption reached 10% 7963 | -8/Garrison | Lost 4 parts (1p2n1u) 8014 | -8/Garrison | Garrison Relay disabled 8191 | -8/Garrison | Triggered checkpoint 8357 | -8/Garrison | Discovered new exit (range 12) 8380 | -8/Garrison | Core integrity fell below 20% 8455 | -8/Garrison | Lost 5 parts (3n2w) 8489 | -8/Garrison | Triggered checkpoint 8637 | -8/Garrison | Garrison Relay disabled 9333 | -8/Garrison | Triggered checkpoint 9429 | -8/Garrison | Garrison Relay disabled 9591 | -8/Garrison | Triggered checkpoint 9839 | -8/Garrison | Triggered checkpoint 9869 | -8/Garrison | Destroyed by G-47 Trooper with Particle Gun Last Messages --------------- 09755_ System corrupted: Component data lost. 09765_ ALERT: Garrison interior compromised. 09774_ System corrupted: Matter fused (-9). 09791_ System corrupted: Matter fused (-5). 09806_ System corrupted: Substantial component data lost. 09839_ Beams of light sweep through the air. An alarm sounds. 09842_ Sneak attack on D-53 Grenadier. 09845_ System corrupted: Heat flow error (+287). 09845_ Lgt. Armor Plating destroyed. 09846_ Overheating: Energy bleed (-27). 09847_ Carbon-fiber Leg destroyed. 09852_ I-25 Savior destroyed. 09853_ The unstable cave ceiling collapses. 09860_ 5MGN 3IY3TFR FC9NNOVULCZ/Y62U8R0|WL %NR/ 09862_ Critical hit (Burn: +37). 09863_ Aluminum Leg destroyed. 09863_ D-53 Grenadier destroyed. 09868_ The unstable cave ceiling collapses. Map ----- +----------------------------------------------------+ | ?????????????????# #?????????????????????????????? | | ?????????????????# #?????????????????????????????? | | ?????????????????# #?????????????????????????????? | | ???????????????### #?????????????????????????????? | | ##?????????????# #?????????????????????????????? | | #?????????????# !#?????????????????????????????? | | ###########???# #?????????????????????????????? | | #???###[#?????????????????????????????? | | #?????# #?????????????????????????????? | | ######### ####### #?????????????????????????????? | | ????????# #?????????????????????????????? | | ????????# ####+####?????????#####???????????????? | | ????????# #?????????????????# ???l????????????? | | ????????# #?????????????????# ????????????????? | | ????????# #?????????????????# #????????????????? | | ????????# #?????????????????# #####????????????? | | ????????# #???????????????### # ?????????????? | | ????????# #???????????????? ##?????????????? | | ????????# #???????????###### #?????????????? | | ????????# #???????????# # ##??????????????? | | ????????# #??????###### ## #??????????????? | | ????????# ######## ###g### ## ? | | ????????# g | | ????????# g | | ????????########### ## ###########"!!!! | | ????????????????### ## @ ###?????????????? | | ????????????????# ^ #?????????????? | | ????????????????#C ^^ #?????????????? | | ????????????????#C ^ = #?????????????? | | ????????????????# #?????????????? | | ????????????????### ## # ###?????????????? | | ????????########### ## # ############???? | | ????????# #???? | | ????????# = #???? | | ????????# ######## ########## #???? | | ????????# #??????## ## ######????????# #???? | | ????????# #???????# ## #?# #?????????# #???? | | ????????# #???????# #####;#?# #?????????# #???? | | ??????### #???????+* #???# ### #?????????# #???? | | ####### # #???????# !#???# #?????????# #???? | | # #???????#[!#???##### #?????????# #???? | | ### # # [#####+### #???????# #?????????# #???? | | [ #???????# #?????????# ##### | | =[ = = *! ! !#???????# #??###????#* | | ### [ ## ############???????# #### ######![ | | ??#! ### #??????????????????# [ !=" ! ##### | | ?# %"""## #??????????????????#!###### #####"#???? | | ?######## #??????????????????# #????# #???# #???? | | ????????# #??????????????????# #????# ###?# #???? | | ????????# #????????????????########## ### #???? | +----------------------------------------------------+ Best States ------------- Heat Dissipation 53 Energy Generation 15 Energy Capacity 280 Matter Stores 300 Matter Capacity 300 Sight Range 20 Terrain Scan Density 10 Cloak Strength 5 Armor Coverage 300 Evasion (%) 40 Targeting Accuracy 8 Recoil Reduction 4 Offensive Hacking 10 Item Schematics ----------------- Seismic Detector | -10/Materials | Hacked Hacking Suite | -8/Materials | Scanalyzed ECM Suite | -8/Materials | Scanalyzed Lgt. Treads | -8/Materials | Scanalyzed Robot Schematics ------------------ None Fabricated ------------ Nothing Alien Tech Used ----------------- None Achievements -------------- Dramatic Entrance Challenges ------------ None Game ------ Seed GravmagGaussConstruct Manual? 0 Play Time 01:40:33 Cumulative 60.4 hours Start 2024.05.15 @ 17:04:05 End 2024.05.16 @ 10:31:11 Sessions 3 Manual Loads 0 Difficulty Rogue Special Mode None Game No. 64 Rogue 59 Adventurer 5 Explorer 0 Win Type - Total 0 Types 0/0/0/0/0/0/0/0/0 Lore% 30 Gallery% 39 Achievement% 28 Wizard Run 0 Options --------- Layout 2 ASCII 0 Keyboard 0 Movement Mouse Keybinds 0 Fullscreen 2 Font 24/Smallcaps Map View 50x44 Zoom Use 0% Tactical HUD 1 Map Filters NONE Filters NONE Steam 1 RUN: b048b4c1-f48a-40d8-af3b-78fc7927c524